Cogmind - Beta 13 @@@ ROGUE MODE // 2024.07.04 @ 23:59:13 Player: GayPredator Result: Self-destructed Performance ------------- Evolutions (4) 2000 Regions Visited (8) 1600 Robots Destroyed (75) 375 Value Destroyed (2408) 2408 Prototype IDs (17) 340 Alien Tech Used (0) 0 Bonus (382) 382 TOTAL SCORE: 7105 Bonus ------- High Alert Combat Kills 82 Met Data Miner 300 Cogmind --------- Core Integrity 717/850 Matter 300/300 Energy 150/150 System Corruption 8% Temperature Cool (0) Movement Rolling (122) Ox2 Location -6/Factory Parts ------- > --- POWER (1) -------- Micro Nuclear Core > --- PROPULSION (5) --- Flexi-carbon Leg Flexi-carbon Leg Wheeled Gravmag-Compact Exoskeleton > --- UTILITY (6) ------ Armored Scrap Engine Medium Storage Unit Improved Sensor Array Improved Signal Interpreter System Shield > --- WEAPON (3) ------- Powered Hammer Powered Hammer Powered Hammer > --- INVENTORY (10) --- Machine Analyzer Advanced Signal Interpreter Makeshift Light Armor Plating Layered Light Armor Plating Layered Light Armor Plating Layered Light Armor Plating System Shield Proton Missile Launcher Heavy Rocket Launcher Heavy Rocket Launcher Peak State ------------ > --- POWER ------------ Micro Nuclear Core > --- PROPULSION ------- Flexi-carbon Leg Flexi-carbon Leg Wheeled Gravmag-Compact Exoskeleton > --- UTILITY ---------- Armored Scrap Engine Medium Storage Unit Improved Sensor Array Makeshift Light Armor Plating System Shield > --- WEAPON ----------- Powered Hammer Powered Hammer Powered Hammer > --- INVENTORY -------- Improved Signal Interpreter Advanced Signal Interpreter Layered Light Armor Plating Layered Light Armor Plating Layered Light Armor Plating System Shield Advanced Assault Cannon Heavy Rocket Launcher Heavy Rocket Launcher [Rating: 61] Favorites ----------- Power Improved Ion Engine Engine Improved Ion Engine Power Core Constructs Propulsion Light Treads Treads Light Treads Leg Flexi-carbon Leg Wheel Constructs Utility Makeshift Light Armor Plating Device Armored Scrap Engine Storage Medium Storage Unit Processor Armor Integrity Analyzer Hackware System Shield Protection Makeshift Light Armor Plating Weapon Shotgun Energy Gun Arc Projector Energy Cannon Constructs Ballistic Gun Shotgun Ballistic Cannon Battle Cannon Launcher Heavy Rocket Launcher Impact Weapon Powered Hammer Slashing Weapon Makeshift Axe Build | -11 -10 -10 -9 -7 -7 -7 -6 -6 ------- Run | Yrd Mat Sub Rec Fac Low Dat Pro Fac Slots Evolved 8 | . . . . 6 . . . 2 Power . | . . . . . . . . . Propulsion 3 | . . . . 3 . . . . Utility 4 | . . . . 2 . . . 2 Weapon 1 | . . . . 1 . . . . Parts Attached 74 | 7 5 22 4 14 6 . 1 15 Power 8 | 1 1 2 1 1 . . . 2 Engine 5 | 1 1 2 1 . . . . . Core 3 | . . . . 1 . . . 2 Reactor . | . . . . . . . . . Propulsion 13 | 2 . 5 2 2 . . . 2 Treads 2 | 2 . . . . . . . . Leg 2 | . . . . . . . . 2 Wheel 9 | . . 5 2 2 . . . . Hover . | . . . . . . . . . Flight . | . . . . . . . . . Utility 23 | 2 1 5 1 5 2 . . 7 Device 7 | 1 . 2 . 3 . . . 1 Storage 3 | 1 1 . . . . . . 1 Processor 6 | . . 1 . 2 1 . . 2 Hackware 1 | . . . . . . . . 1 Protection 6 | . . 2 1 . 1 . . 2 Artifact . | . . . . . . . . . Weapon 30 | 2 3 10 . 6 4 . 1 4 Energy Gun 3 | . . 2 . 1 . . . . Energy Cannon 3 | . . . . 1 1 . . 1 Ballistic Gun 9 | 2 2 4 . 1 . . . . Ballistic Cannon 6 | . 1 3 . . 1 . 1 . Launcher 5 | . . 1 . 3 1 . . . Special Weapon . | . . . . . . . . . Impact Weapon 3 | . . . . . . . . 3 Slashing Weapon 1 | . . . . . 1 . . . Piercing Weapon . | . . . . . . . . . Special Melee Weapon . | . . . . . . . . . Unidentified Prototypes . | . . . . . . . . . Parts Lost 22 | . . 4 . 13 . . . 5 Power 2 | . . . . 1 . . . 1 Propulsion 5 | . . 1 . 3 . . . 1 Utility 4 | . . 2 . 1 . . . 1 Weapon 11 | . . 1 . 8 . . . 2 Highest Loss Streak 7 | . . 2 . 7 . . . 4 To Critical Strikes . | . . . . . . . . . Average Slot Usage (%) 78 | . 99 93 100 57 52 61 58 65 Engine 7 | . 14 14 14 4 . . . . Core 2 | . . . . 2 7 7 7 5 Treads 8 | . 28 9 . . . . . . Leg 1 | . . . . . . . . 9 Wheel 8 | . . 18 28 8 7 7 7 2 Device 9 | . 14 7 14 11 7 7 7 6 Storage 4 | . 14 2 . . . . . 5 Processor 2 | . . . . 4 7 7 7 5 Hackware 1 | . . . . . . . . 5 Protection 6 | . . 11 14 5 4 7 7 5 Energy Cannon 1 | . . . . 2 5 . . 3 Ballistic Gun 9 | . 22 16 . 2 . . . . Ballistic Cannon 6 | . 5 6 28 6 1 7 5 1 Launcher 2 | . . 3 . 3 4 7 7 1 Slashing Weapon 1 | . . . . . 4 7 7 4 Naked Turns . | . . . . . . . . . Heaviest Build 40 | 14 24 33 18 32 27 27 27 40 Greatest Support 76 | 40 40 40 40 76 30 30 30 40 Greatest Overweight (x) 2 | 1 . 1 . . . . . 2 Average Overweight (x) . | . . . . . . . . . Largest Inventory Capacity 10 | 8 10 10 5 5 5 5 5 10 Average Capacity 6 | 7 9 5 5 5 5 5 5 9 Most Carried 10 | 5 10 10 5 5 5 5 5 10 Average Carried 6 | 3 8 5 4 4 4 5 5 7 Final Capacity 10 | 8 10 5 5 5 5 5 5 10 Final Carried 10 | 5 10 5 5 5 5 5 5 10 Scrap Engine Consumption 44 | . . . . 17 4 . 2 21 Constructs Created 5 | . . . . 2 . . . 3 Constructs Modified 9 | . . . . 4 2 . . 3 Class Distribution -------------------- 68% | Mutant 8% | Scavenger-Mutant 6% | Tank 5% | Subdweller-Mutant 4% | Derelict-Mutant Dominant Class ---------------- Mutant | -10/Materials Mutant | -10/Subcaves Mutant | -9/Recycling Tank | -7/Factory Mutant | -7/Lower Caves Mutant | -7/Data Miner Mutant | -6/Proximity Caves Mutant | -6/Factory Resources | -11 -10 -10 -9 -7 -7 -7 -6 -6 ----------- Run | Yrd Mat Sub Rec Fac Low Dat Pro Fac Matter Collected 2130 | 279 266 665 90 431 60 . 130 209 Remotely . | . . . . . . . . . Salvage Created 2577 | 130 440 378 210 600 . . 261 558 Parts 123 | 8 28 26 4 28 . . 8 21 Haulers Intercepted 1 | . 1 . . . . . . . Recyclers Shooed 2 | . . . 2 . . . . . Parts Field Recycled 2 | . . . . 2 . . . . Retrieved Matter 9 | . . . . 9 . . . . Parts Self-Destructed 21 | . . 15 . . . . 6 . Prevented . | . . . . . . . . . Kills | -11 -10 -10 -9 -7 -7 -7 -6 -6 ------- Run | Yrd Mat Sub Rec Fac Low Dat Pro Fac Combat Hostiles Destroyed 49 | . 10 13 . 14 . . 7 5 Melee 5 | . . . . . . . 2 3 Guns 18 | . 3 11 . 4 . . . . Cannons 15 | . 7 1 . 5 . . 1 1 AOE 8 | . . 1 . 3 . . 4 . Classes Destroyed 15 | 2 5 2 . 2 . . 2 2 Worker 4 | . . . . 2 . . . 2 Tunneler 2 | 2 . . . . . . . . Hauler 1 | . 1 . . . . . . . Recycler 8 | 1 1 . 3 1 . . . 2 Mechanic 1 | . . . . . . . . 1 Operator 2 | . 1 . . 1 . . . . Turret 2 | . . 2 . . . . . . Watcher 6 | . 3 . . 2 . . . 1 Swarmer 10 | . 3 3 . 4 . . . . Grunt 22 | . 7 . . 8 . . 5 2 Duelist 1 | . . . . . . . 1 . Sentry 1 | . . . . . . . 1 . Hunter 1 | . . . . . . . . 1 Programmer 4 | . . . . 2 . . . 2 Subdweller 10 | . . 10 . . . . . . Best Kill Streak 8 | 3 4 3 2 8 . . 4 2 Combat Bots Only 7 | . 3 3 . 7 . . 4 2 Max Kills in Single Turn 2 | 1 1 1 1 1 . . 2 1 Gunslinging . | . . . . . . . . . Exploded 2 | . . 1 . 1 . . 2 . Melee 1 | . . . . . . . 1 1 Uniques/NPCs Destroyed . | . . . . . . . . . Combat | -11 -10 -10 -9 -7 -7 -7 -6 -6 -------- Run | Yrd Mat Sub Rec Fac Low Dat Pro Fac Hostile Shots Fired 369 | . 34 98 . 164 . . 27 46 Missed 129 | . 5 29 . 70 . . 8 17 Damage Taken 4036 | . 322 1223 . 1420 . . 297 774 Core 597 | . 78 76 . 208 . . 102 133 Absorbed by Shields . | . . . . . . . . . Regen/Repaired (Parts) 368 | . . . . . . . . 368 Core Remaining (%) 64 | 100 . . 38 . . . 55 . Volleys Fired 198 | 6 43 48 5 58 . . 6 32 Largest 3 | 2 2 2 2 3 . . 2 2 Hottest 165 | 40 55 78 78 141 . . 87 165 Shots Fired 330 | 12 86 94 10 82 . . 12 34 Gun 169 | 12 60 74 . 21 . . . 2 Cannon 136 | . 26 16 10 46 . . 6 32 Launcher 25 | . . 4 . 15 . . 6 . Special . | . . . . . . . . . Kinetic 254 | 12 86 90 10 38 . . 6 12 Thermal 22 | . . . . . . . . 22 Explosive 25 | . . 4 . 15 . . 6 . Electromagnetic 29 | . . . . 29 . . . . Robot Hit Streak 17 | 4 17 15 4 15 . . 5 8 Robot Miss Streak 7 | 1 7 3 2 3 . . 1 3 Penetration Max . | . . . . . . . . . Secondary Targets 1 | . . 1 . . . . . . Max Gunslinging Chain 1 | . . 1 . . . . . . Shots Hit Robots 260 | 8 56 80 5 54 . . 18 39 Core Hits 128 | 4 26 35 3 33 . . 15 12 Critical Kills 1 | . . 1 . . . . . . Critical Parts Destroyed 3 | . . . . . . . . 3 Critical Strikes 10 | . 2 1 2 1 . . . 4 Destroy 1 | . . 1 . . . . . . Blast 6 | . 2 . 2 1 . . . 1 Smash 3 | . . . . . . . . 3 Melee Attacks 38 | . . . . . . . 13 25 Impact 21 | . . . . . . . . 21 Slashing 17 | . . . . . . . 13 4 Piercing . | . . . . . . . . . Sneak Attacks 1 | . . . . . . . . 1 Combat Hostiles . | . . . . . . . . . Follow-up Attacks 2 | . . . . . . . . 2 Damage Inflicted 7323 | 91 749 1534 108 2362 . . 1028 1451 Guns 1878 | 91 417 1126 . 218 . . . 26 Cannons 2267 | . 332 255 108 828 . . 137 607 Explosions 2019 | . . 153 . 1309 . . 557 . Melee 1152 | . . . . . . . 334 818 Ramming 7 | . . . . 7 . . . . Kinetic 3115 | 91 749 1381 108 402 . . 137 247 Thermal 1131 | . . . . 745 . . . 386 Explosive 1274 | . . 153 . 564 . . 557 . Electromagnetic 644 | . . . . 644 . . . . Impact 699 | . . . . . . . . 699 Slashing 453 | . . . . . . . 334 119 Piercing . | . . . . . . . . . Highest Corruption 8 | . . . . 1 1 1 1 8 Average Corruption 2 | . . . . 1 1 1 1 7 Corruption Purged . | . . . . . . . . . Corruption Blocked 4 | . . . . 4 . . . . Effects 13 | . . . . . 2 1 6 4 Message Errors 6 | . . . . . 2 . 3 1 Matter Fused 1 | . . . . . . . . 1 Heat Flow Errors 2 | . . . . . . . 1 1 Data Loss (minor) 3 | . . . . . . 1 1 1 Alerts 1 | . . . . . . . 1 . Overload Shots . | . . . . . . . . . Overflow Damage 498 | . 7 3 . 156 . . 11 321 Projectiles 104 | . 7 3 . 29 . . 11 54 Explosions 127 | . . . . 127 . . . . Melee 267 | . . . . . . . . 267 Knockbacks 18 | . 1 3 . 4 . . 1 9 Impact 6 | . . . . . . . . 6 Kinetic 12 | . 1 3 . 4 . . 1 3 Secondary . | . . . . . . . . . Self-Inflicted Damage 150 | . . 18 . 132 . . . . Shots 5 | . . 1 . 4 . . . . Rammed 1 | . . . . 1 . . . . Targets Rammed 1 | . . . . 1 . . . . Kicked . | . . . . . . . . . Crushed . | . . . . . . . . . Highest Temperature 225 | . 18 . . 225 . . 208 180 Average Temperature 58 | . 8 . . 80 . . 60 43 Received Heat Transfer 780 | . 129 171 . 255 . . 126 99 Siege Activations . | . . . . . . . . . Robots Corrupted 2 | . . . . 2 . . . . Combat Hostiles 2 | . . . . 2 . . . . Parts Fried 6 | . . . . 4 . . . 2 Impact Corruptions 9 | . . . . . . . . 9 Robots Melted . | . . . . . . . . . Combat Hostiles . | . . . . . . . . . Parts Melted 5 | . . . . . . . . 5 Heat Transferred 1031 | . . . . 450 . . . 581 Parts Sabotaged . | . . . . . . . . . Parts Stolen . | . . . . . . . . . Parts Stripped . | . . . . . . . . . Power Chain Reactions 2 | . . . . 2 . . . . Alert | -11 -10 -10 -9 -7 -7 -7 -6 -6 ------- Run | Yrd Mat Sub Rec Fac Low Dat Pro Fac Peak Influence 651 | 15 230 . 251 651 . . . 137 Initial 213 | . 9 . 213 144 . . . . Average 149 | 6 95 . 172 339 . . . 51 Maximum Alert Level 2 | . 1 . 1 2 . . . . Low Security (%) 78 | 100 95 . 44 41 . . . 100 Level 1 9 | . 4 . 55 14 . . . . Level 2 11 | . . . . 43 . . . . Level 3 . | . . . . . . . . . Level 4 . | . . . . . . . . . Level 5 . | . . . . . . . . . High Security . | . . . . . . . . . Max Security . | . . . . . . . . . Squads Dispatched 10 | . 1 . . 5 . . . 4 Investigation 1 | . . . . . . . . 1 Extermination 4 | . . . . 2 . . . 2 Reinforcement 3 | . 1 . . 2 . . . . Assault . | . . . . . . . . . Garrison 2 | . . . . 1 . . . 1 Intercept . | . . . . . . . . . Searches Triggered . | . . . . . . . . . Construction Impeded . | . . . . . . . . . Haulers Reinforced 1 | . . . . 1 . . . . Active Scanning Responses . | . . . . . . . . . Cargo Convoy Interrupts . | . . . . . . . . . Stealth | -11 -10 -10 -9 -7 -7 -7 -6 -6 --------- Run | Yrd Mat Sub Rec Fac Low Dat Pro Fac Distress Signals 3 | . 1 . . 2 . . . . Communications Jammed . | . . . . . . . . . Distress Signals . | . . . . . . . . . Times Spotted 105 | . 18 35 . 31 . . 9 12 Peak Tracking Total 7 | . 3 3 . 7 . . 4 3 Tactical Retreats 6 | . . 2 . 3 . . 1 . Traps | -11 -10 -10 -9 -7 -7 -7 -6 -6 ------- Run | Yrd Mat Sub Rec Fac Low Dat Pro Fac Traps Triggered . | . . . . . . . . . Indirectly . | . . . . . . . . . Trap Hack Attempts . | . . . . . . . . . Triggered . | . . . . . . . . . Disarmed 2 | . 2 . . . . . . . Reprogrammed . | . . . . . . . . . Reused . | . . . . . . . . . Traps Extracted . | . . . . . . . . . Installed . | . . . . . . . . . Triggered 1 | . . . . 1 . . . . Machines | -11 -10 -10 -9 -7 -7 -7 -6 -6 ---------- Run | Yrd Mat Sub Rec Fac Low Dat Pro Fac Machines Disabled 12 | . . 1 . 7 . . . 4 Max in Single Turn 4 | . . 1 . 4 . . . 1 Machines Repaired . | . . . . . . . . . Machines Dismantled . | . . . . . . . . . Machines Sabotaged . | . . . . . . . . . Overloaded Fab Kills . | . . . . . . . . . Hacking | -11 -10 -10 -9 -7 -7 -7 -6 -6 --------- Run | Yrd Mat Sub Rec Fac Low Dat Pro Fac Machines Accessed 32 | . 7 1 6 5 1 4 . 8 Terminals 20 | . 7 . 5 3 . . . 5 Fabricators 2 | . . . . 1 . . . 1 Repair Stations 1 | . . . . . . . . 1 Recycling Units 2 | . . . 1 1 . . . . Scanalyzers . | . . . . . . . . . Garrison Access 1 | . . . . . . . . 1 Total Hacks 117 | . 27 4 20 13 1 30 . 22 Successful 65 | . 14 4 7 3 1 30 . 6 Failed 52 | . 13 . 13 10 . . . 16 Catastrophic 9 | . 1 . 4 . . . . 4 Database Lockouts . | . . . . . . . . . Manual 29 | . 16 . 5 1 . . . 7 Terminals 67 | . 27 . 17 7 . . . 16 Fabricators 4 | . . . . 2 . . . 2 Repair Stations 2 | . . . . . . . . 2 Recycling Units 7 | . . . 3 4 . . . . Scanalyzers . | . . . . . . . . . Garrison Access 2 | . . . . . . . . 2 Terminal Hacks 59 | . 12 4 5 3 1 30 . 4 Record 15 | . . 4 . . . 11 . . Part Schematic 13 | . 3 . . . . 10 . . Robot Schematic 6 | . . . . . . 6 . . Prototype ID Bank 5 | . 1 . 1 . . 3 . . Open Door 1 | . . . . . 1 . . . Branch Access Points 1 | . . . . . . . . 1 Terminal Index 3 | . 1 . . 1 . . . 1 Alert Level 2 | . 1 . 1 . . . . . Unreport Threat 1 | . . . 1 . . . . . Locate Traps 4 | . 2 . . 1 . . . 1 Disarm Traps 1 | . 1 . . . . . . . Maintenance Status 1 | . . . 1 . . . . . Patrol Status 1 | . . . 1 . . . . . Zone Layout 5 | . 3 . . 1 . . . 1 Fabricator Hacks 1 | . . . . . . . . 1 Network Status 1 | . . . . . . . . 1 Repair Station Hacks . | . . . . . . . . . Recycling Unit Hacks 1 | . . . 1 . . . . . Report Inventory 1 | . . . 1 . . . . . Scanalyzer . | . . . . . . . . . Garrison Access Hacks . | . . . . . . . . . Unauthorized Hacks 4 | . 2 . 1 . . . . 1 Terminals 4 | . 2 . 1 . . . . 1 Botnet 4 | . 2 . 1 . . . . 1 Fabricators . | . . . . . . . . . Repair Stations . | . . . . . . . . . Recycling Units . | . . . . . . . . . Scanalyzers . | . . . . . . . . . Garrison Access . | . . . . . . . . . Data Cores Recovered . | . . . . . . . . . Used . | . . . . . . . . . Hacking Detections 25 | . 6 . 6 5 . . . 8 Full Trace Events 4 | . 1 . 2 . . . . 1 Feedback Events . | . . . . . . . . . Feedback Blocked . | . . . . . . . . . Robot Schematics Acquired 6 | . . . . . . 6 . . Robots Built . | . . . . . . . . . Authchips . | . . . . . . . . . Time . | . . . . . . . . . Total Robot Build Rating . | . . . . . . . . . Part Schematics Acquired 13 | . 3 . . . . 10 . . Parts Built . | . . . . . . . . . Authchips . | . . . . . . . . . Time . | . . . . . . . . . Total Part Build Rating . | . . . . . . . . . Parts Repaired . | . . . . . . . . . Time . | . . . . . . . . . Parts Recycled . | . . . . . . . . . Recycled Matter . | . . . . . . . . . Retrieved Matter . | . . . . . . . . . Retrieved Components . | . . . . . . . . . Parts Scanalyzed . | . . . . . . . . . Part Schematics Acquired . | . . . . . . . . . Parts Damaged . | . . . . . . . . . Bothacking | -11 -10 -10 -9 -7 -7 -7 -6 -6 ------------ Run | Yrd Mat Sub Rec Fac Low Dat Pro Fac Used RIF Installer . | . . . . . . . . . Robots Hacked . | . . . . . . . . . Non-combat . | . . . . . . . . . Combat . | . . . . . . . . . Robot Hacks Applied . | . . . . . . . . . Relay Couplers Released . | . . . . . . . . . Fabnet Peak Effective % . | . . . . . . . . . Robots Rewired . | . . . . . . . . . Allies Hacked . | . . . . . . . . . Hacks Repelled . | . . . . . . . . . Allies | -11 -10 -10 -9 -7 -7 -7 -6 -6 -------- Run | Yrd Mat Sub Rec Fac Low Dat Pro Fac Total Allies . | . . . . . . . . . Largest Group . | . . . . . . . . . Highest-Rated Group . | . . . . . . . . . Highest-Rated Ally . | . . . . . . . . . Total Orders . | . . . . . . . . . Ally Attacks . | . . . . . . . . . Total Damage . | . . . . . . . . . Kills . | . . . . . . . . . Allies Corrupted . | . . . . . . . . . Allies Melted . | . . . . . . . . . Intel | -11 -10 -10 -9 -7 -7 -7 -6 -6 ------- Run | Yrd Mat Sub Rec Fac Low Dat Pro Fac Robot Analysis Total . | . . . . . . . . . Derelict Logs Recovered 1 | . . . . . . . 1 . Drone Launches . | . . . . . . . . . Drone Recoveries . | . . . . . . . . . Exploration | -11 -10 -10 -9 -7 -7 -7 -6 -6 ------------- Run | Yrd Mat Sub Rec Fac Low Dat Pro Fac Turns Passed 6105 | 119 1172 1579 301 940 201 69 643 1081 Spaces Moved 4207 | 54 520 1079 269 883 221 82 447 652 Core 6 | 6 . . . . . . . . Treads 857 | 48 520 289 . . . . . . Legs 428 | . . . . . . . . 428 Wheels 2895 | . . 790 269 862 221 82 447 224 Hover . | . . . . . . . . . Flight 21 | . . . . 21 . . . . Fastest Speed 50 | 50 160 110 100 67 67 85 85 85 Average Speed 112 | 149 160 123 101 80 85 85 85 133 Slowest Speed 209 | 160 160 160 110 115 107 85 85 209 Overloaded Moves . | . . . . . . . . . Propulsion Burnouts . | . . . . . . . . . Robots Hopped . | . . . . . . . . . Cave-ins Triggered 1 | . . . . . . . . 1 Exploration Rate (%) 46 | 4 76 63 73 18 38 71 65 14 Regions Visited 8 Branch Regions 5 Pre-discovered Areas 1 | . . . . . . 1 . . Known Exits Taken 3 | . . 1 . 1 . . 1 . Unknown Exits Taken 5 | 1 1 . 1 . 1 1 . . Scrap Searched 14 | . . 10 . . 3 . 1 . Spaces Dug 1 | . . . . . . . . 1 Terrain Destroyed 158 | . . 15 1 94 . . 47 1 Melee 1 | . . . . . . . . 1 Projectile 3 | . . 1 1 1 . . . . AOE 154 | . . 14 . 93 . . 47 . Terrain Rammed . | . . . . . . . . . Walls Destroyed . | . . . . . . . . . Machines Disabled . | . . . . . . . . . Actions | -11 -10 -10 -9 -7 -7 -7 -6 -6 --------- Run | Yrd Mat Sub Rec Fac Low Dat Pro Fac Total 5208 | 79 781 1235 287 1036 232 81 684 793 Wait 570 | 6 189 48 3 53 1 . 217 53 Move 4199 | 53 519 1078 268 882 220 81 446 652 Hop . | . . . . . . . . . Pick Up 58 | 6 13 11 2 13 2 . . 11 Fast Attach 47 | 7 3 13 2 7 5 . 1 9 Attach 14 | . . 4 1 5 1 . . 3 Detach 2 | . . . . 1 . . . 1 Swap 13 | . 2 5 1 2 . . . 3 Drop 67 | 1 12 22 5 14 3 . 1 9 Fire 198 | 6 43 48 5 58 . . 6 32 Melee 33 | . . . . . . . 13 20 Ram 1 | . . . . 1 . . . . Kick . | . . . . . . . . . Crush . | . . . . . . . . . Escape Stasis . | . . . . . . . . . Rewire . | . . . . . . . . . Trap . | . . . . . . . . . Miscellaneous 6 | . . 6 . . . . . . Route ------- -11/Scrapyard -10/Materials (discovered 5 exits: [*Mat x2] / [*Min x2] / *Sub) -10/Subcaves (discovered 2 exits: [*Mat] / *Rec) -9/Recycling -7/Factory (discovered 3 exits: Fac x2 / *Low) -7/Lower Caves -7/Data Miner -6/Proximity Caves -6/Factory (discovered 2 exits: Low x2) History --------- Turn | Location | Event 15 | -11/Scrapyard | Discovered new exit (range 15) 120 | -11/Scrapyard | Entered Materials 312 | -10/Materials | Build established: Mutant 322 | -10/Materials | Discovered new exit (range 14) 692 | -10/Materials | Discovered new exit (range 10) 1029 | -10/Materials | Discovered new exit (range 9) 1101 | -10/Materials | Discovered new exit (range 5) 1273 | -10/Materials | Discovered new exit (range 4) 1292 | -10/Materials | Entered Subcaves 1478 | -10/Subcaves | Disturbed a concealed Subdweller 2154 | -10/Subcaves | Build established: Subdweller-Mutant 2181 | -10/Subcaves | Core integrity fell below 50% 2486 | -10/Subcaves | Build established: Mutant 2594 | -10/Subcaves | Visited Clippyterm 2597 | -10/Subcaves | Learned 40 Factory zone layouts 2597 | -10/Subcaves | Learned Factory garrison access intel 2767 | -10/Subcaves | Discovered new exit (range 15) 2767 | -10/Subcaves | Ambushed by Subdweller buried in earth 2809 | -10/Subcaves | Discovered new exit (range 8) 2845 | -10/Subcaves | Identified exit to Recycling 2871 | -10/Subcaves | Entered Recycling 2875 | -9/Recycling | Found Scrap Engine 3069 | -9/Recycling | Discovered new exit (range 16) 3172 | -9/Recycling | Entered Factory 3172 | -7/Factory | Evolved 6 slots: Propulsion x3, Utility x2, Weapon x1 3173 | -7/Factory | Identified exit to Factory 3173 | -7/Factory | Identified exit to Lower Caves 3174 | -7/Factory | Loaded intel: 4 garrison access locations 3479 | -7/Factory | Build established: Tank 3615 | -7/Factory | Lost 3 parts (3w) 3761 | -7/Factory | Destroyed 7 combat bots 4053 | -7/Factory | Garrison activated, responded to threat 4112 | -7/Factory | Entered Lower Caves 4125 | -7/Lower Caves | Lost 7 parts (1p2n1u3w) 4286 | -7/Lower Caves | Encountered a Warlord checkpoint 4304 | -7/Lower Caves | A Derelict revealed a hidden shortcut to meet someone special 4313 | -7/Lower Caves | Entered Data Miner 4313 | -7/Data Miner | Discovered new exit (range 6) 4330 | -7/Data Miner | Met Data Miner 4347 | -7/Data Miner | Learned location of Section 7 (-2) 4347 | -7/Data Miner | Acquired the access code to Warlord's prototype stash 4348 | -7/Data Miner | Build established: Mutant 4360 | -7/Data Miner | Received God Mode back door access code from Data Miner 4382 | -7/Data Miner | Entered Proximity Caves 4405 | -6/Proximity Caves | Attracted the attention of an 0b10 checkpoint 4592 | -6/Proximity Caves | Learned Factory stockpile data 4677 | -6/Proximity Caves | Spotted B-75 Beast 4766 | -6/Proximity Caves | Received a Behemoth hack from an annoying Tinkerer 5020 | -6/Proximity Caves | Discovered exit to Factory (range 5) 5025 | -6/Proximity Caves | Entered Factory 5025 | -6/Factory | Evolved 2 slots: Utility x2 5571 | -6/Factory | Build established: Scavenger-Mutant 5705 | -6/Factory | Identified exit to Lower Caves 5808 | -6/Factory | Garrison activated, responded to threat 5904 | -6/Factory | Crushed by falling debris 5935 | -6/Factory | Lost 4 parts (1n1u2w) 6068 | -6/Factory | Build established: Mutant 6106 | -6/Factory | Self-destructed Last Messages --------------- 06038_ :XJN#S>KZH:ED#EXWQO8W 06038_ Acquired Machine Analyzer. 06039_ K-01 Serf collects debris. 06066_ Arm. Scrap Engine reinforces its armored shell (+69). 06067_ System corrupted: Heat flow error (+182). 06079_ P-60 Hacker suffers critical hit (Smash). 06079_ Destroyed Imp. Heat Sink. 06079_ P-60 Hacker system corrupted by crushing effect. 06079_ P-60 Hacker knocked back. 06085_ Destroyed Target Analyzer. 06085_ P-60 Hacker system corrupted by crushing effect. 06085_ Mic. Nuclear Core melted. 06085_ Gravmag System melted. 06085_ P-60 Hacker destroyed. 06089_ Acquired 20 matter. 06104_ Dropped Adv. Assault Cannon. 06105_ Acquired Proton Missile Launcher. Map ----- +----------------------------------------------------+ | ????????????????????# #??????????????? | | ????????????????????# !#??????????????? | | ????????????????????# #???????????? ! | | ????????????????????# #??????????? | | ????????????????????# #??????????? | | ????????????????????# #???????????####/ | | ????????????????????# #????????????# | | ????????????????????# #?????????#### | | ????????????????????# ! #?????????# | | ????????????????????# #?????????# | | ????????????????????# #?????????# | | ????????????????????# [[ #?????????# """ | | ????????????#+#############/################ """ | | ??????????? % """ | | ??????????? | | ??????????? u | | ??????????? | | ??????????? | | ????????????#+############ #####################+# | | ?????????????????????????# #?????????????????? ? | | ?????????????????????????# #????????????????? ?? | | ?????????????????????????# #???????????????? """?" | | ?????????????????????????# #?????????????????"""?" | | ????????????????????????## ##????????????????"""?" | | ???????????????????######] #????????????????????? | | ???????????????????+ @ +????????""""????????? | | ???????????????????###### #????????""""????????? | | ????????????????????????## ##????????""""????????? | | ?????????????????????????# #?????????""""????????? | | ?????????????????????????# #?????????????????????? | | ?????????????????????????# #?????????""""????????? | | ?????????????????????????# #?????????""""????????? | | ?????????????????????????? #?????????""""????????? | | ?????????????????????????? ?????????""""????????? | | ???????????????????H?????? ????t????????????????? | | ??????????????k??????????? ?????????????????????? | | ?????????????????????????? ?????????????????????? | | ?????????????????????????? ??????????????????????? | | ?????????????????????????? ??????????????????????? | | ?????????????????????????????????????????????????? | | ?????????????????????????????????????????????????? | | ?????????????????????????????????????????????????? | | ?????????????????????????????????????????????????? | | ?????????????????????????????????????????????????? | | ?????????????????????????????????????????????????? | | ?????????????????????????????????????????????????? | | ?????????????????????????????????????????????????? | | ?????????????????????????????????????????????????? | | ?????????????????????????????????????????????????? | | ?????????????????????????????????????????????????? | +----------------------------------------------------+ Best States ------------- Heat Dissipation 48 Energy Generation 15 Energy Capacity 265 Matter Stores 300 Matter Capacity 300 Sight Range 16 Robot Scan Range 15 Terrain Scan Density 10 Corruption Block 8 Armor Coverage 800 Evasion (%) 56 Armor Integrity Analysis 30 Recoil Reduction 2 Defensive Hacking 10 Item Schematics ----------------- Cargo Storage Unit | -10/Materials | Hacked Hcp. Storage Unit | -10/Materials | Hacked Propulsion Shielding | -10/Materials | Hacked Combat Drone Bay | -7/Data Miner | Free Lgt. Regenerative Plating | -7/Data Miner | Free Cld. Aerolev Unit | -7/Data Miner | Free Thermal Defense Suite | -7/Data Miner | Free Cld. Plasma Cannon | -7/Data Miner | Free Adv. System Shield | -7/Data Miner | Free Antigrav System | -7/Data Miner | Free Tesla Rifle | -7/Data Miner | Free Enh. Optical Array | -7/Data Miner | Free Adv. VSS Leg | -7/Data Miner | Free Robot Schematics ------------------ A-15 Conveyor | -7/Data Miner | Free M-28 Smith | -7/Data Miner | Free B-48 Gladiator | -7/Data Miner | Free G-47 Trooper | -7/Data Miner | Free B-60 Warrior | -7/Data Miner | Free L-41 Fighter | -7/Data Miner | Free Fabricated ------------ Nothing Alien Tech Used ----------------- None Achievements -------------- None Challenges ------------ None Game ------ Seed FlightOpticalMultitool Manual? 0 Play Time 01:04:54 Cumulative 138.3 hours Start 2024.06.09 @ 17:29:51 End 2024.07.04 @ 23:59:13 Sessions 2 Manual Loads 0 Difficulty Rogue Special Mode None Game No. 115 Rogue 76 Adventurer 32 Explorer 7 Win Type - Total 1 Types 1/0/0/0/0/0/0/0/0 Lore% 40 Gallery% 68 Achievement% 52 Wizard Run 0 Options --------- Layout 2 ASCII 0 Keyboard 0 Movement Numpad Keybinds 0 Fullscreen 2 Font 24/Smallcaps Map View 50x44 Zoom Use 0% Tactical HUD 1 Map Filters NONE Filters NONE Steam SD RUN: b0c2a811-a8d7-4049-8317-10a6b7d7a8ef